bitfinex/quotes_SOLUSD_20250518
["timestamp","ask_amount","ask_price","bid_price","bid_amount"]
[1747531496387,5.98372426,167.12,167.08,10.01197842]
[1747531497585,5.98372426,167.12,167.08,6.59947763]
[1747531500293,6.59947763,167.11,167.07,8.1078]
[1747531500478,6.59947763,167.11,167.05,10.86585843]
[1747531502193,12.58391808,167.1,167.05,10.86585843]
[1747531502510,6.59947763,167.08,167.05,4.2663808]
[1747531503007,6.59947763,167.08,167.03,8.18317763]
[1747531503579,5.98551505,167.07,167.03,8.18317763]
[1747531503781,6.59947763,167.06,167.01,10.86585843]
[1747531504017,6.59947763,167.06,167.01,4.2663808]
[1747531504214,6.59947763,167.06,167.01,10.86585843]
[1747531505113,12.58499268,167.07,167.02,6.59947763]
[1747531509512,12.58499268,167.07,167.0,5.98798845]
[1747531509713,12.58499268,167.07,167.02,6.59947763]
[1747531515221,6.59947763,167.06,167.02,6.59947763]
[1747531515419,6.59947763,167.06,167.01,6.59947763]
[1747531515601,6.59947763,167.05,167.0,6.59947763]
[1747531517125,5.98659003,167.04,167.0,6.59947763]
[1747531522428,5.98659003,167.04,167.01,6.59947763]
[1747531522723,5.98587333,167.06,167.03,6.59947763]
[1747531525441,5.98587333,167.06,167.02,6.59947763]
[1747531525934,12.58535096,167.06,167.02,6.59947763]
[1747531526749,12.58535096,167.06,167.01,6.59947763]
[1747531528943,12.58535096,167.06,166.99,1.6244]
[1747531529119,12.58535096,167.06,167.01,6.59947763]
[1747531532459,12.58535096,167.06,167.0,6.59947763]
[1747531533650,6.59947763,167.05,167.0,6.59947763]
[1747531536469,5.98659003,167.04,167.01,6.59947763]
[1747531538471,5.98623166,167.05,167.01,6.59947763]
[1747531539769,12.58570929,167.05,167.0,6.59947763]
[1747531542859,5.98623166,167.05,167.01,6.59947763]
[1747531547296,5.98623166,167.05,166.99,1.6244]
[1747531547491,5.98623166,167.05,167.01,6.59947763]
[1747531553402,12.58570929,167.05,166.99,1.6244]
[1747531553709,12.58570929,167.05,166.99,8.22387763]
[1747531553907,12.58570929,167.05,167.0,6.59947763]
[1747531556814,27.5500343,167.06,167.0,6.59947763]
[1747531557014,20.95055667,167.06,167.0,6.59947763]
[1747531557311,27.5500343,167.06,167.0,6.59947763]
[1747531557915,5.98587333,167.06,167.02,6.59947763]
[1747531558285,7.75791038,167.12,167.05,25.24912649]
[1747531558600,138.2,167.15,167.11,6.59947763]
[1747531558601,144.18275088,167.15,167.11,6.59947763]
[1747531558795,138.2,167.15,167.13,6.59947763]
[1747531559412,138.2,167.15,167.13,10.30512211]
[1747531560718,144.18275981,167.15,167.11,10.30512211]
[1747531560915,154.48788192,167.15,167.11,10.30512211]
[1747531561121,10.30512211,167.13,167.08,10.30512211]
[1747531561505,10.30512211,167.12,167.07,4.2663808]
[1747531561709,10.30512211,167.13,167.08,10.30512211]
[1747531562020,10.30512211,167.14,167.09,10.30512211]
[1747531562911,5.98336624,167.13,167.09,10.30512211]
[1747531563926,5.98336624,167.13,167.08,10.30512211]
[1747531564422,16.28848835,167.13,167.08,10.30512211]
[1747531568319,42.28848835,167.13,167.08,10.30512211]
[1747531575447,5.98408234,167.11,167.07,10.30512211]
[1747531580630,5.98408234,167.11,167.06,6.1682]
[1747531580631,16.28920445,167.11,167.06,6.1682]
[1747531580831,36.30512211,167.07,167.04,18.64964886]
[1747531581040,10.30512211,167.05,167.01,1.6252]
[1747531581239,10.30512211,167.03,167.01,1.6252]
[1747531581435,10.30512211,167.04,167.01,1.6252]
[1747531582449,5.98694845,167.03,167.01,1.6252]
[1747531582851,5.98659609,167.04,167.01,1.6252]
[1747531585261,16.29135377,167.05,167.01,1.6252]
[1747531585558,10.30512211,167.04,167.01,1.6252]
[1747531585950,16.29135377,167.05,167.01,1.6252]
[1747531591675,10.30512211,167.04,166.99,28.95477097]
[1747531591874,16.29135377,167.05,167.0,10.30512211]
[1747531592077,16.29135377,167.05,166.99,18.64964886]
[1747531592274,16.29135377,167.05,167.0,10.30512211]
[1747531594886,10.30512211,167.03,166.98,6.4092]
[1747531595060,20.95181082,167.05,166.98,6.4092]
[1747531595061,10.30512211,167.02,166.98,6.4092]
[1747531595261,5.9876654,167.01,166.98,16.71432211]
[1747531596191,5.9876654,167.01,166.98,6.4092]
[1747531596364,16.29278751,167.01,166.97,1.604]
[1747531597386,16.29242901,167.02,166.97,1.604]
[1747531597577,16.29242901,167.02,166.97,11.90912211]
[1747531598381,10.30512211,167.01,166.97,1.604]
[1747531598580,5.9873069,167.02,166.95,28.95477097]
[1747531598581,10.30512211,167.0,166.95,28.95477097]
[1747531599483,5.98838253,166.99,166.95,28.95477097]
[1747531600285,5.98838253,166.99,166.96,10.30512211]
[1747531601487,5.98802395,167.0,166.96,10.30512211]
[1747531603114,20.95557417,167.02,166.96,10.30512211]
[1747531603296,10.30512211,167.01,166.96,10.30512211]
[1747531606093,5.98802395,167.0,166.96,10.30512211]
[1747531606595,5.98802395,167.0,166.95,18.64964886]
[1747531606901,5.98802395,167.0,166.96,10.30512211]
[1747531608973,5.98802395,167.0,166.97,10.30512211]
[1747531611001,16.29278751,167.01,166.96,10.30512211]
[1747531612095,10.30512211,167.0,166.96,10.30512211]
[1747531613101,5.98838253,166.99,166.96,10.30512211]
[1747531613302,5.98838253,166.99,166.96,6.60915119]
[1747531615200,5.98802395,167.0,166.97,6.60915119]
[1747531615792,5.98802395,167.0,166.98,6.60915119]
[1747531616718,5.98802395,167.0,166.97,6.60915119]
[1747531617303,26.0,167.0,166.97,10.32463979]
[1747531619582,5.98838253,166.99,166.97,10.32463979]
[1747531621309,5.98838253,166.99,166.95,10.32463979]
[1747531621689,16.31302232,166.99,166.94,16.53903979]
[1747531622103,5.98838253,166.99,166.95,10.32463979]
[1747531627711,31.98815208,167.0,166.98,10.32463979]
[1747531628810,5.9876654,167.01,166.98,10.32463979]
[1747531632420,5.9876654,167.01,166.97,10.32463979]
[1747531633407,5.9876654,167.01,166.98,3.42038337]
[1747531634928,5.9876654,167.01,166.97,10.32463979]
[1747531635533,16.31230519,167.01,166.96,29.76463979]
[1747531636035,16.31230519,167.01,166.97,3.42062916]
[1747531637051,10.32463979,167.0,166.97,3.42062916]
[1747531637211,10.32463979,166.98,166.97,3.42062916]
[1747531637542,36.32463979,166.98,166.97,3.42062916]
[1747531638046,36.32463979,166.98,166.91,10.32463979]
[1747531638225,10.32463979,166.97,166.91,10.32463979]
[1747531638425,10.32463979,166.96,166.91,10.32463979]
[1747531639153,5.98981731,166.95,166.91,10.32463979]
[1747531640235,5.98981731,166.95,166.92,3.42602499]
[1747531640420,10.32463979,166.93,166.92,3.42602499]
[1747531641747,16.31517474,166.93,166.92,3.42602499]
[1747531642422,16.31517474,166.93,166.87,10.32463979]
[1747531642742,10.32463979,166.92,166.87,10.32463979]
[1747531643963,5.99125277,166.91,166.87,10.32463979]
[1747531645744,16.31517474,166.93,166.88,10.32463979]
[1747531645927,153.1733624,166.97,166.9,10.32463979]
[1747531646251,10.32463979,166.95,166.9,10.32463979]
[1747531646622,36.32463979,166.96,166.91,10.32463979]
[1747531646820,36.32463979,166.96,166.86,10.32463979]
[1747531646821,5.98945855,166.96,166.92,10.32463979]
[1747531656059,16.31409834,166.96,166.91,11.85793979]
[1747531659100,16.31409834,166.96,166.92,10.32463979]
[1747531659396,5.98945855,166.96,166.92,10.32463979]
[1747531664888,16.23091746,166.96,166.91,11.85793979]
[1747531668382,16.23091746,166.96,166.91,1.5333]
[1747531670205,10.32463979,166.95,166.87,26.95258248]
[1747531670384,10.32463979,166.94,166.89,10.32463979]
[1747531671280,5.99053495,166.93,166.89,6.61436377]
[1747531673309,10.33485265,166.94,166.89,10.33485265]
[1747531674307,5.99053495,166.93,166.89,10.33485265]
[1747531675208,5.98945855,166.96,166.92,10.33485265]
[1747531675588,5.98945855,166.96,166.93,10.33485265]
[1747531675788,5.98945855,166.96,166.92,10.33485265]
[1747531676398,5.98945855,166.96,166.91,10.33485265]
[1747531677210,16.3243112,166.96,166.9,10.33485265]
[1747531677515,10.33485265,166.95,166.9,10.33485265]
[1747531677810,10.33485265,166.95,166.88,18.64964886]
[1747531678018,10.33485265,166.95,166.87,31.15880716]
[1747531678311,10.33485265,166.94,166.89,10.33485265]
[1747531679121,5.99053495,166.93,166.89,10.33485265]
[1747531679920,5.99053495,166.93,166.87,26.89242636]
[1747531680124,5.99053495,166.93,166.89,10.33485265]
[1747531681102,10.33485265,166.95,166.89,10.33485265]
[1747531682015,5.99017611,166.94,166.89,10.33485265]
[1747531683023,5.99017611,166.94,166.9,3.42195741]
[1747531683321,36.33485265,166.93,166.9,3.42195741]
[1747531684412,5.99089384,166.92,166.9,3.42195741]
[1747531685425,5.99089384,166.92,166.87,11.91485265]
[1747531685925,10.33485265,166.91,166.85,6.1082]
[1747531686101,10.33485265,166.91,166.86,10.33485265]
[1747531686301,10.33485265,166.91,166.85,6.1082]
[1747531686516,10.33485265,166.91,166.86,10.33485265]
[1747531687009,10.33485265,166.91,166.87,3.42344811]
[1747531688714,16.32646439,166.9,166.85,16.44305265]
[1747531689030,10.33485265,166.89,166.84,14.60123345]
[1747531689207,10.33485265,166.88,166.84,4.2663808]
[1747531689908,46.97064109,166.9,166.84,4.2663808]
[1747531689910,26.0,166.87,166.84,4.2663808]
[1747531690234,10.33485265,166.86,166.84,4.2663808]
[1747531690604,5.99340725,166.85,166.84,4.2663808]
[1747531690922,5.99313814,166.86,166.84,4.2663808]
[1747531691629,5.99313814,166.86,166.82,10.33485265]
[1747531692341,5.99313814,166.86,166.81,6.0945]
[1747531692634,5.99313814,166.86,166.82,10.33485265]
[1747531693146,16.32799079,166.86,166.81,10.33485265]
[1747531694535,5.99313814,166.86,166.82,10.33485265]
[1747531695337,10.33485265,166.84,166.79,19.58]
[1747531695557,10.33485265,166.85,166.79,19.58]
[1747531695714,10.33485265,166.85,166.8,10.33485265]
[1747531698139,16.32855771,166.85,166.79,19.58]
[1747531698338,10.33485265,166.83,166.78,11.98925265]
[1747531700638,16.32907697,166.83,166.78,11.98925265]
[1747531700841,5.99422432,166.83,166.79,10.33485265]
[1747531704929,16.32907697,166.83,166.78,1.6544]
[1747531705117,16.32907697,166.83,166.78,11.98925265]
[1747531705625,16.32907697,166.83,166.79,10.33485265]
[1747531706143,5.99422432,166.83,166.79,10.33485265]
[1747531707252,12.61594414,166.84,166.79,6.62217766]
[1747531708949,150.81570273,166.85,166.8,6.62217766]
[1747531711544,138.2,166.85,166.82,6.62217766]
[1747531712344,138.2,166.85,166.81,6.62217766]
[1747531712722,144.19350579,166.85,166.81,6.62217766]
[1747531713844,138.2,166.85,166.82,6.62217766]
[1747531717452,138.2,166.85,166.81,6.62217766]
[1747531719951,138.2,166.85,166.82,6.62217766]
[1747531721124,12.61527249,166.86,166.82,6.62217766]
[1747531724456,6.62217766,166.86,166.82,6.62217766]
[1747531725153,12.61523889,166.86,166.82,6.62217766]
[1747531726156,6.62217766,166.85,166.81,6.62217766]
[1747531727255,12.61563722,166.85,166.81,6.62217766]
[1747531727553,5.99345956,166.85,166.81,6.62217766]
[1747531729059,12.61563722,166.85,166.8,6.62217766]
[1747531729261,6.62217766,166.84,166.79,6.62217766]
[1747531729647,6.62217766,166.84,166.8,6.62217766]
[1747531731075,5.99412575,166.83,166.8,6.62217766]
[1747531733267,5.99412575,166.83,166.81,3.43007608]
[1747531733639,6.62217766,166.86,166.81,10.05225374]
[1747531733839,5.99304806,166.86,166.82,6.62217766]
[1747531738271,12.61522572,166.86,166.81,6.62217766]
[1747531743265,12.61522572,166.86,166.82,3.43563715]
[1747531744171,12.61522572,166.86,166.81,6.62217766]
[1747531747176,12.61593923,166.85,166.8,6.62217766]
[1747531749074,12.61593923,166.85,166.81,3.43448311]
[1747531750457,6.62217766,166.84,166.81,3.43448311]
[1747531750656,6.62217766,166.84,166.79,6.62217766]
[1747531751558,5.99412575,166.83,166.79,6.62217766]
[1747531752058,5.99412575,166.83,166.8,3.43365205]
[1747531753453,5.99412575,166.83,166.81,3.43365205]
[1747531755279,5.99304806,166.86,166.81,10.05582971]
[1747531755483,12.61522572,166.86,166.81,6.62217766]
[1747531755861,5.99304806,166.86,166.81,6.62217766]
[1747531756385,12.61522572,166.86,166.81,6.62217766]
[1747531759177,12.61594414,166.84,166.79,6.62217766]
[1747531759674,6.62217766,166.83,166.78,12.54295846]
[1747531759863,6.62217766,166.83,166.8,3.43228074]
[1747531760373,6.62217766,166.82,166.8,3.43228074]
[1747531761286,5.99484443,166.81,166.8,3.43228074]
[1747531761776,5.99484443,166.81,166.77,12.92377766]
[1747531763988,5.99484443,166.81,166.77,6.62217766]
[1747531764181,12.61702209,166.81,166.76,6.62217766]
[1747531765272,6.62217766,166.8,166.75,6.62217766]
[1747531767166,5.99556328,166.79,166.75,6.62217766]
[1747531771495,12.61774094,166.79,166.74,8.24757766]
[1747531772702,5.99556328,166.79,166.75,6.62217766]
[1747531774896,5.99520383,166.8,166.76,6.62217766]
[1747531783185,5.99520383,166.8,166.77,6.62217766]
[1747531787391,5.99520383,166.8,166.74,1.6254]
[1747531787598,5.99520383,166.8,166.76,6.62217766]
[1747531789714,26.0,166.77,166.73,6.5945]
[1747531789900,6.62217766,166.76,166.71,10.88855846]
[1747531790494,32.62217766,166.77,166.72,6.62217766]
[1747531790695,5.99664188,166.76,166.72,6.62217766]
[1747531792317,5.99664188,166.76,166.73,6.62217766]
[1747531796023,5.99664188,166.76,166.72,6.62217766]
[1747531800425,12.61881954,166.76,166.71,6.62217766]
[1747531801121,6.62217766,166.74,166.7,1.633]
[1747531801514,5.99772086,166.73,166.7,1.633]
[1747531801921,31.99772086,166.73,166.68,6.577]
[1747531802228,38.61989852,166.73,166.68,13.19917766]
[1747531802811,6.62217766,166.72,166.68,6.577]
[1747531803022,6.62217766,166.72,166.67,6.62217766]
[1747531803728,5.9984404,166.71,166.67,6.62217766]
[1747531804530,5.9984404,166.71,166.66,8.16907766]
[1747531804748,5.9984404,166.71,166.67,6.62217766]
[1747531805120,5.9984404,166.71,166.68,6.62217766]
[1747531805820,5.99808061,166.72,166.68,6.62217766]
[1747531808941,26.0,166.73,166.69,6.62217766]
[1747531809139,26.0,166.73,166.7,6.62217766]
[1747531809314,31.99778265,166.73,166.7,6.62217766]
[1747531809632,138.2,166.76,166.72,6.62217766]
[1747531810431,144.82217766,166.76,166.71,6.62217766]
[1747531810609,12.6189067,166.76,166.71,6.62217766]
[1747531812327,12.6189067,166.76,166.7,5.9986395]
[1747531812518,12.6189067,166.76,166.71,6.62217766]
[1747531817544,6.62217766,166.75,166.7,6.62217766]
[1747531819649,12.61934299,166.75,166.7,6.62217766]
[1747531821953,5.99716533,166.75,166.71,6.62217766]
[1747531824158,31.99664188,166.76,166.72,6.62217766]
[1747531824339,38.61881954,166.76,166.71,6.62217766]
[1747531825753,6.62217766,166.75,166.68,6.4352]
[1747531825937,5.99808061,166.72,166.68,13.05737766]
[1747531827047,5.99808061,166.72,166.68,6.62217766]
[1747531827245,5.99808061,166.72,166.66,43.48292966]
[1747531827246,12.62025827,166.72,166.67,6.62217766]
[1747531827649,6.62217766,166.71,166.66,12.43545846]
[1747531828160,5.99880023,166.7,166.66,12.43545846]
[1747531828352,5.99880023,166.7,166.67,6.62217766]
[1747531829548,5.9984404,166.71,166.67,6.62217766]
[1747531830279,5.9984404,166.71,166.68,6.62217766]
[1747531830449,144.82217766,166.75,166.7,6.62217766]
[1747531830765,164.2,166.75,166.71,6.62217766]
[1747531831863,5.99736116,166.74,166.71,6.62217766]
[1747531832063,12.61953882,166.74,166.69,6.62217766]
[1747531832440,6.62217766,166.73,166.69,6.62217766]
[1747531832856,6.62217766,166.73,166.68,6.62217766]
[1747531833937,6.62217766,166.71,166.66,1.5469]
[1747531834437,6.62217766,166.71,166.66,8.16907766]
[1747531835273,6.62217766,166.71,166.66,11.90973438]
[1747531835274,16.36127478,166.71,166.66,11.90973438]
[1747531835583,31.35737579,166.71,166.66,11.90973438]
[1747531835769,31.35737579,166.71,166.66,1.5469]
[1747531837870,20.99454141,166.71,166.62,4.2663808]
[1747531838061,10.36283438,166.66,166.62,4.2663808]
[1747531838574,10.36283438,166.67,166.62,18.06255537]
[1747531840573,10.36283438,166.65,166.62,7.69972099]
[1747531840789,10.36283438,166.63,166.59,4.2663808]
[1747531841472,10.36283438,166.62,166.59,4.2663808]
[1747531842350,10.36283438,166.61,166.59,4.2663808]
[1747531842858,6.00240096,166.6,166.59,4.2663808]
[1747531843167,16.36523534,166.6,166.59,4.2663808]
[1747531844565,42.36523534,166.6,166.59,4.2663808]
[1747531844879,57.37123774,166.6,166.54,1.5622]
[1747531845049,10.36283438,166.56,166.51,33.27886404]
[1747531845248,10.36283438,166.54,166.51,4.2663808]
[1747531846378,6.00492403,166.53,166.51,4.2663808]
[1747531846864,16.36775841,166.53,166.51,4.2663808]
[1747531847453,10.36283438,166.52,166.51,4.2663808]
[1747531848484,6.0056453,166.51,166.46,12.01243438]
[1747531848652,16.36847968,166.51,166.46,12.01243438]
[1747531852677,16.36847968,166.51,166.47,10.36283438]
[1747531854448,10.36283438,166.52,166.47,10.36283438]
[1747531854651,10.36283438,166.5,166.46,12.01243438]
[1747531855253,21.01723412,166.53,166.46,12.01243438]
[1747531855582,10.36283438,166.52,166.47,10.36283438]
[1747531856078,21.01723412,166.53,166.47,10.36283438]
[1747531856283,10.36283438,166.52,166.47,10.36283438]
[1747531856781,6.0056453,166.51,166.47,10.36283438]
[1747531858283,16.36847968,166.51,166.47,10.36283438]
[1747531859258,10.36283438,166.5,166.46,1.6496]
[1747531859463,10.36283438,166.5,166.46,12.01243438]
[1747531860078,6.0056453,166.51,166.46,12.01243438]
[1747531860079,16.36847968,166.51,166.46,12.01243438]
[1747531860253,16.36811903,166.52,166.47,10.36283438]
[1747531864799,16.36811903,166.52,166.47,9.86283438]
[1747531865181,6.00528465,166.52,166.48,10.36283438]
[1747531865385,154.56786865,166.53,166.48,10.36283438]
[1747531869399,16.36820378,166.52,166.48,10.36283438]
[1747531872998,16.36820378,166.52,166.47,16.36989358]
[1747531874506,10.36283438,166.51,166.47,10.36283438]
[1747531874687,10.36283438,166.51,166.46,12.01243438]
[1747531875185,16.36820378,166.52,166.47,10.36283438]
[1747531875717,16.28667936,166.52,166.47,10.36283438]
[1747531876975,16.36863036,166.51,166.47,10.36283438]
[1747531878517,10.36283438,166.5,166.46,1.6496]
[1747531880298,16.36905528,166.5,166.46,1.6496]
[1747531880500,16.36905528,166.5,166.46,0.89594]
[1747531881405,16.36820477,166.52,166.47,10.36283438]
[1747531887091,154.56784759,166.53,166.48,10.36283438]
[1747531888208,154.56784759,166.53,166.49,3.44592348]
[1747531889513,154.56784759,166.53,166.48,10.36283438]
[1747531891621,154.56784759,166.53,166.46,11.16965135]
[1747531891793,154.56784759,166.53,166.48,10.36283438]
[1747531893420,154.56784759,166.53,166.49,3.45365101]
[1747531895522,154.56784759,166.53,166.48,3.45365101]
[1747531897025,6.0056453,166.51,166.48,3.45365101]
[1747531897523,6.0056453,166.51,166.49,3.45365101]
[1747531899297,6.0056453,166.51,166.48,3.45365101]
[1747531901336,12.65293672,166.51,166.47,3.45365101]
[1747531902026,6.64729142,166.5,166.47,3.45365101]
[1747531902636,6.00636674,166.49,166.47,3.45365101]
[1747531903013,6.00636674,166.49,166.46,3.45365101]
[1747531903535,6.00636674,166.49,166.46,3.37212658]
[1747531907042,6.64729142,166.47,166.46,3.37212658]
[1747531907424,6.64729142,166.48,166.46,3.37212658]
[1747531908315,6.64729142,166.47,166.43,6.64729142]
[1747531909049,6.00744923,166.46,166.43,6.64729142]
[1747531911110,6.00708836,166.47,166.43,6.64729142]
[1747531911511,32.00667292,166.49,166.45,6.64729142]
[1747531912028,6.64729142,166.48,166.43,6.64729142]
[1747531912536,6.64729142,166.47,166.43,6.64729142]
[1747531913343,6.00744923,166.46,166.43,6.64729142]
[1747531915529,6.00708836,166.47,166.43,6.64729142]
[1747531916141,6.00708836,166.47,166.44,3.4493258]
[1747531917022,12.65437978,166.47,166.44,3.4493258]
[1747531917446,6.00708836,166.47,166.44,3.4493258]
[1747531917619,6.00672753,166.48,166.44,10.09661722]
[1747531917941,6.00672753,166.48,166.45,6.64729142]
[1747531919346,6.00672753,166.48,166.44,6.64729142]
[1747531922756,6.00672753,166.48,166.43,6.64729142]
[1747531924358,6.00672753,166.48,166.44,3.4489071]
[1747531925146,6.00672753,166.48,166.44,10.09619852]
[1747531925538,6.00672753,166.48,166.44,6.64729142]
[1747531925738,38.65375862,166.49,166.44,6.64729142]
[1747531925965,32.0064672,166.49,166.44,6.64729142]
[1747531926133,38.65375862,166.49,166.44,6.64729142]
[1747531928361,38.65375862,166.49,166.43,6.64729142]
[1747531928864,32.0064672,166.49,166.43,6.64729142]
[1747531929031,6.64729142,166.48,166.44,3.44841511]
[1747531930059,6.00708836,166.47,166.44,3.44841511]
[1747531930854,6.00708836,166.47,166.43,6.64729142]
[1747531931059,12.65437978,166.47,166.42,27.12999142]
[1747531931262,12.65437978,166.47,166.42,25.56729142]
[1747531931559,12.65437978,166.47,166.42,6.64729142]
[1747531931760,6.64729142,166.46,166.41,10.91367222]
[1747531931958,6.00708836,166.47,166.41,4.2663808]
[1747531931959,6.64729142,166.45,166.41,4.2663808]
[1747531932165,6.00817111,166.44,166.42,3.44861414]
[1747531932459,12.65474065,166.46,166.42,3.44861414]
[1747531932857,6.00744923,166.46,166.42,3.44861414]
[1747531933055,12.65474065,166.46,166.42,3.44861414]
[1747531933869,6.00744923,166.46,166.42,6.64729142]
[1747531934164,6.00714622,166.47,166.43,6.64729142]
[1747531934466,6.00676552,166.48,166.44,6.64729142]
[1747531936268,12.65405694,166.48,166.43,6.64729142]
[1747531936763,12.65405694,166.48,166.44,3.44945712]
[1747531937458,6.64729142,166.48,166.44,3.44945712]
[1747531937767,176.85384091,166.49,166.44,16.10488898]
[1747531937949,176.85384091,166.49,166.44,12.65543186]
[1747531938145,164.2,166.49,166.45,6.64729142]
[1747531939866,164.2,166.49,166.45,12.6550375]
[1747531940236,170.84729142,166.49,166.44,6.64729142]
[1747531941166,170.84729142,166.49,166.45,3.45100022]
[1747531941955,6.64729142,166.48,166.45,3.45100022]
[1747531942750,170.20654171,166.49,166.45,3.45100022]
[1747531942943,6.64729142,166.47,166.45,3.45100022]
[1747531943467,6.64729142,166.47,166.44,0.120985]
[1747531943764,12.65469862,166.47,166.44,0.120985]
[1747531944558,6.64729142,166.46,166.44,0.120985]
[1747531945153,12.65469862,166.47,166.44,0.120985]
[1747531951772,6.00672753,166.48,166.44,0.120985]
[1747531951978,12.65401895,166.48,166.44,0.120985]
[1747531952282,6.00672753,166.48,166.44,6.76827642]
[1747531952578,176.85377556,166.49,166.44,6.76827642]
[1747531953165,176.85377556,166.49,166.45,3.45441216]
[1747531953365,170.20648414,166.49,166.45,3.45441216]
[1747531953568,176.85377556,166.49,166.45,3.45441216]
[1747531954271,6.64729142,166.48,166.44,0.120985]
[1747531955964,6.00708836,166.47,166.44,0.120985]
[1747531956948,12.65437978,166.47,166.44,0.120985]
[1747531957580,6.64729142,166.46,166.44,0.120985]
[1747531958082,6.00781015,166.45,166.44,0.120985]
[1747531959455,12.65510157,166.45,166.44,0.120985]
[1747531964982,6.00781015,166.45,166.44,0.120985]
[1747531965855,6.00758067,166.46,166.44,0.120985]
[1747531975886,6.64729142,166.48,166.44,0.120985]
[1747531976191,12.65401895,166.48,166.44,0.120985]
[1747531976986,6.00672753,166.48,166.44,0.120985]
[1747531977196,12.65401895,166.48,166.44,0.120985]
[1747531978403,6.00672753,166.48,166.44,0.120985]
[1747531981095,170.84729142,166.49,166.45,6.64729142]
[1747531981096,144.20651139,166.49,166.45,6.64729142]
[1747531981276,6.64729142,166.48,166.44,0.120985]
[1747531982701,6.00672753,166.48,166.44,6.76827642]
[1747531983204,6.00672753,166.48,166.45,6.64729142]
[1747531983783,138.2,166.49,166.44,1.746185]
[1747531984010,24.92535538,166.52,166.48,6.64729142]
[1747531984173,6.00456346,166.54,166.5,6.64729142]
[1747531984374,6.00426776,166.55,166.52,6.64729142]
[1747531984675,32.00426776,166.55,166.52,6.64729142]
[1747531984870,26.0,166.55,166.53,6.64729142]
[1747531985086,12.65087856,166.57,166.53,6.64729142]
[1747531985410,32.00358714,166.57,166.53,6.64729142]
[1747531985606,6.00358714,166.57,166.53,6.64729142]
[1747531985819,32.00358714,166.57,166.53,6.64729142]
[1747531985999,38.65087856,166.57,166.53,6.64729142]
[1747531986306,12.65087856,166.57,166.53,6.64729142]
[1747531986603,38.65087856,166.57,166.52,6.64729142]
[1747531987405,42.38399782,166.57,166.52,10.38041068]
[1747531987706,32.00358714,166.57,166.53,10.38041068]
[1747531990280,26.0,166.59,166.55,10.38041068]
[1747531990789,36.38041068,166.59,166.54,10.38041068]
[1747531991178,42.38341392,166.59,166.54,10.38041068]
[1747531991392,42.38341392,166.59,166.55,10.38041068]
[1747531991598,32.00300324,166.59,166.55,10.38041068]
[1747531992708,32.00300324,166.59,166.52,6.00494625]
[1747531992888,42.38341392,166.59,166.54,10.38041068]
[1747531993202,32.00300324,166.59,166.55,10.38041068]
[1747531994005,6.00300324,166.59,166.55,10.38041068]
[1747531994185,16.38289528,166.6,166.55,10.38041068]
[1747531994585,6.0024846,166.6,166.56,10.38041068]
[1747531997309,16.38289528,166.6,166.55,10.38041068]
[1747532000606,10.38041068,166.59,166.54,10.38041068]
[1747532001413,10.38041068,166.59,166.55,10.38041068]
[1747532001606,6.00311846,166.59,166.55,10.38041068]
[1747532005710,6.00240096,166.6,166.55,10.38041068]
[1747532006088,16.38281164,166.6,166.55,10.38041068]
[1747532009386,12.64364092,166.6,166.55,6.64123996]
[1747532017824,6.00312162,166.58,166.53,18.64964886]
[1747532018024,6.00312162,166.58,166.55,6.64123996]
[1747532019601,6.00312162,166.58,166.54,6.64123996]
[1747532023629,12.64364092,166.6,166.55,6.64123996]
[1747532024518,6.64123996,166.59,166.54,6.64123996]
[1747532025636,6.00312162,166.58,166.54,6.64123996]
[1747532028015,6.64123996,166.57,166.53,6.64123996]
[1747532028532,6.64123996,166.57,166.52,6.64123996]
[1747532028929,6.00384245,166.56,166.52,6.64123996]
[1747532029222,6.64123996,166.55,166.5,12.53282076]
[1747532029428,6.64123996,166.54,166.5,4.2663808]
[1747532029741,6.00384245,166.56,166.5,4.2663808]
[1747532029742,6.64123996,166.53,166.5,4.2663808]
[1747532030049,6.64123996,166.53,166.5,7.7173079]
[1747532031044,6.00528465,166.52,166.5,7.7173079]
[1747532031840,6.00528465,166.52,166.5,3.4509271]
[1747532032844,26.0,166.55,166.5,10.09216706]
[1747532033051,138.2,166.57,166.52,6.64123996]
[1747532033052,26.0,166.54,166.52,6.64123996]
[1747532033538,6.00393189,166.56,166.53,6.64123996]
[1747532033918,26.0,166.54,166.53,6.64123996]
[1747532034436,6.00393189,166.56,166.53,6.64123996]
[1747532040538,170.20354283,166.57,166.53,6.64123996]
[1747532041651,170.20354283,166.57,166.54,6.64123996]
[1747532043743,170.20354283,166.57,166.53,6.64123996]
[1747532045118,32.00354283,166.57,166.53,6.64123996]
[1747532046247,26.0,166.57,166.53,6.64123996]
[1747532046423,26.0,166.57,166.54,6.64123996]
[1747532046622,12.64409204,166.59,166.54,6.64123996]
[1747532046836,6.00285208,166.59,166.55,6.64123996]
[1747532047044,6.00285208,166.59,166.56,6.64123996]
[1747532047620,6.00251703,166.6,166.56,6.64123996]
[1747532047948,32.00251703,166.6,166.56,6.64123996]
[1747532048544,38.64375699,166.6,166.56,6.64123996]